bitfinex-derivatives/quotes_SOLF0:USTF0_20241127
["timestamp","ask_amount","ask_price","bid_price","bid_amount"]
[1732676361913,2.1382,233.95,233.91,6.74368382]
[1732676362207,4.1602,233.96,233.91,6.74368382]
[1732676363210,4.0983,233.96,233.91,6.74368382]
[1732676363413,2.2,233.95,233.91,6.74368382]
[1732676364314,2.2,233.95,233.91,8.88208382]
[1732676364610,2.2,233.95,233.91,6.74368382]
[1732676364816,2.1383,233.93,233.89,8.88228382]
[1732676365310,4.3382,233.95,233.9,2.1385]
[1732676366111,2.1382,233.94,233.9,2.1385]
[1732676366414,2.2,233.95,233.89,8.88228382]
[1732676366615,2.1385,233.91,233.8,10.33192874]
[1732676366813,2.2,233.95,233.88,8.88238382]
[1732676367420,2.1383,233.93,233.88,8.88238382]
[1732676367613,2.2,233.95,233.88,8.88238382]
[1732676368216,2.1383,233.93,233.88,8.88238382]
[1732676368917,2.1384,233.92,233.88,8.88238382]
[1732676369514,2.1384,233.92,233.88,6.74368382]
[1732676369718,2.2,233.95,233.89,2.1387]
[1732676369912,2.2,233.95,233.88,6.74368382]
[1732676370921,2.1385,233.91,233.88,8.88248382]
[1732676371121,2.2,233.95,233.88,6.74368382]
[1732676372624,2.2,233.95,233.74,17.49068623]
[1732676372625,21.80368382,233.95,233.75,5.83022874]
[1732676372815,21.80368382,233.95,233.85,6.74368382]
[1732676373012,2.1384,233.92,233.87,6.74368382]
[1732676373217,21.80368382,233.95,233.87,6.74368382]
[1732676374224,2.1388,233.88,233.87,6.74368382]
[1732676376025,2.1388,233.88,233.85,6.74368382]
[1732676380526,2.2,233.9,233.85,6.74368382]
[1732676381231,2.1387,233.89,233.85,6.74368382]
[1732676382133,2.139,233.86,233.77,2.2]
[1732676382333,2.2,233.9,233.83,6.74368382]
[1732676382832,2.1389,233.87,233.83,6.74368382]
[1732676383336,2.139,233.86,233.84,6.74368382]
[1732676384528,2.2,233.9,233.84,6.74368382]
[1732676385039,2.139,233.85,233.84,6.74368382]
[1732676385528,2.1387,233.89,233.84,6.74368382]
[1732676385725,2.2,233.9,233.84,6.74368382]
[1732676386333,2.1388,233.88,233.84,6.74368382]
[1732676386527,2.2,233.9,233.86,6.74368382]
[1732676387635,2.1387,233.89,233.86,8.88258382]
[1732676388235,2.1387,233.89,233.85,2.139]
[1732676388436,2.2,233.9,233.86,6.74368382]
[1732676388638,2.1388,233.88,233.86,6.74368382]
[1732676388840,2.2,233.9,233.86,6.74368382]
[1732676390339,2.1388,233.88,233.86,6.74368382]
[1732676390534,2.2,233.9,233.86,6.74368382]
[1732676391037,2.2,233.9,233.85,2.139]
[1732676391237,2.1387,233.89,233.85,2.139]
[1732676392635,2.2,233.9,233.86,6.74368382]
[1732676392839,4.3387,233.9,233.86,8.88258382]
[1732676393039,1.9602,233.96,233.88,6.74368382]
[1732676393341,2.2,233.93,233.88,6.74368382]
[1732676394041,2.1384,233.92,233.88,8.88248382]
[1732676394842,4.3383,233.94,233.9,2.1385]
[1732676397440,2.1385,233.91,233.86,2.1389]
[1732676397640,6.74368382,233.93,233.82,2.2]
[1732676397841,6.74368382,233.93,233.86,6.74368382]
[1732676398243,6.74368382,233.93,233.85,2.139]
[1732676398545,6.74368382,233.93,233.85,6.74368382]
[1732676398744,2.1385,233.91,233.85,2.139]
[1732676398944,6.74368382,233.91,233.79,2.2]
[1732676399147,6.74368382,233.91,233.77,2.2]
[1732676399347,2.139,233.86,233.82,6.74368382]
[1732676399538,2.2,233.88,233.82,6.74368382]
[1732676400648,2.139,233.86,233.82,6.74368382]
[1732676403342,2.2,233.88,233.73,0.976]
[1732676403542,6.74368382,233.78,233.74,4.59002938]
[1732676403746,2.2,233.77,233.71,6.74368382]
[1732676404246,2.2,233.77,233.63,0.9567]
[1732676404247,2.2,233.77,233.75,6.74368382]
[1732676404547,3.6313,233.87,233.75,6.74368382]
[1732676404747,2.139,233.85,233.8,6.74368382]
[1732676406440,2.2,233.86,233.8,6.74368382]
[1732676406441,8.94368382,233.86,233.8,6.74368382]
[1732676406640,2.1391,233.84,233.8,6.74368382]
[1732676406947,6.74368382,233.82,233.64,3.9187385]
[1732676407150,2.1397,233.78,233.65,5.72059236]
[1732676407348,2.2,233.79,233.74,6.74368382]
[1732676407547,2.2,233.79,233.74,8.88368382]
[1732676408039,2.2,233.79,233.76,6.74368382]
[1732676408246,2.2,233.79,233.78,6.74368382]
[1732676408440,4.3392,233.84,233.78,6.74368382]
[1732676408842,2.2,233.84,233.78,6.74368382]
[1732676409042,2.2,233.84,233.79,2.1396]
[1732676409247,2.2,233.85,233.79,8.88328382]
[1732676409649,3.04,233.84,233.79,8.88328382]
[1732676409849,5.1792,233.84,233.79,6.74368382]
[1732676410048,3.04,233.84,233.77,8.88338382]
[1732676410246,9.78368382,233.84,233.71,2.2492]
[1732676410441,9.78368382,233.84,233.76,6.74368382]
[1732676410643,6.74368382,233.82,233.74,2.14]
[1732676410846,6.74368382,233.82,233.74,6.74368382]
[1732676411241,9.78368382,233.84,233.76,6.74368382]
[1732676411445,3.42,233.81,233.76,8.88348382]
[1732676411648,5.62,233.81,233.78,6.74368382]
[1732676411853,4.05,233.8,233.76,6.74368382]
[1732676412150,4.05,233.8,233.7,2.2]
[1732676412352,10.79368382,233.8,233.72,6.74368382]
[1732676412543,2.1398,233.77,233.72,8.88388382]
[1732676412747,10.79368382,233.8,233.72,6.74368382]
[1732676413053,6.74368382,233.74,233.65,2.2456]
[1732676413250,6.74368382,233.74,233.66,6.74368382]
[1732676413454,6.74368382,233.72,233.61,2.2]
[1732676413652,6.74368382,233.72,233.63,6.74368382]
[1732676414049,8.88398382,233.72,233.65,2.1408]
[1732676414250,6.74368382,233.72,233.65,8.88448382]
[1732676414447,6.74368382,233.74,233.65,6.74368382]
[1732676414647,6.74368382,233.74,233.67,2.1407]
[1732676414648,2.1402,233.73,233.67,2.1407]
[1732676415050,6.74368382,233.74,233.65,6.74368382]
[1732676415945,6.74368382,233.74,233.67,6.74368382]
[1732676416151,2.1402,233.72,233.67,8.88438382]
[1732676416351,2.1402,233.72,233.67,2.1407]
[1732676417054,2.1401,233.74,233.69,2.1404]
[1732676417354,2.1401,233.74,233.62,10.55777222]
[1732676417355,4.0914,233.75,233.65,10.55777222]
[1732676417554,2.2,233.75,233.71,2.1403]
[1732676417751,2.2,233.75,233.65,10.55777222]
[1732676418153,4.34,233.75,233.68,2.1405]
[1732676418555,4.34,233.75,233.65,10.55777222]
[1732676419252,3.49,233.76,233.7,2.1404]
[1732676419455,2.2,233.75,233.7,2.1404]
[1732676419655,2.2,233.75,233.65,10.55777222]
[1732676419861,2.14,233.74,233.68,2.1406]
[1732676420156,2.2,233.75,233.65,10.55777222]
[1732676420749,2.2,233.75,233.62,10.55777222]
[1732676420955,12.86,233.7,233.49,5.78780697]
[1732676421150,12.86,233.7,233.45,46.30245583]
[1732676421151,10.55777222,233.61,233.5,3.51746663]
[1732676421351,2.2,233.6,233.46,2.12749905]
[1732676421560,2.2,233.6,233.47,3.51794322]
[1732676421758,2.2,233.6,233.46,2.12749905]
[1732676422056,2.2,233.6,233.43,1.9774]
[1732676422057,10.55777222,233.58,233.44,2.09751618]
[1732676422250,10.55777222,233.55,233.4,10.83027222]
[1732676422553,10.55777222,233.52,233.35,10.55777222]
[1732676422757,10.55777222,233.46,233.34,1.0195]
[1732676422962,2.1428,233.44,233.34,2.1437]
[1732676423257,2.2,233.45,233.32,10.55777222]
[1732676423659,10.55777222,233.49,233.32,10.55777222]
[1732676423858,10.55777222,233.49,233.35,10.55777222]
[1732676424052,1.9152,233.51,233.38,10.55777222]
[1732676424053,2.2,233.48,233.38,10.55777222]
[1732676424351,10.55777222,233.52,233.42,2.143]
[1732676424352,3.04,233.47,233.42,2.143]
[1732676424555,3.04,233.47,233.38,10.55777222]
[1732676424556,3.04,233.47,233.41,10.55777222]
[1732676425152,3.04,233.47,233.44,2.1427]
[1732676425361,3.04,233.47,233.41,10.55777222]
[1732676426262,3.04,233.47,233.41,12.70077222]
[1732676426460,3.04,233.47,233.41,10.55777222]
[1732676427261,3.04,233.47,233.4,2.1431]
[1732676427458,3.04,233.47,233.37,0.2725]
[1732676427661,3.04,233.47,233.36,3.2195]
[1732676427859,2.2,233.46,233.36,3.163]
[1732676428059,10.55777222,233.46,233.33,2.2]
[1732676428254,2.2,233.45,233.33,2.2]
[1732676429168,2.2,233.45,233.29,10.55777222]
[1732676429364,10.55777222,233.43,233.29,10.55777222]
[1732676429761,12.70067222,233.43,233.34,2.1437]
[1732676430058,3.42,233.42,233.32,10.55777222]
[1732676431462,3.42,233.42,233.35,2.1436]
[1732676431865,3.42,233.42,233.32,10.55777222]
[1732676433260,3.42,233.42,233.36,2.1435]
[1732676433557,3.42,233.42,233.32,10.55777222]
[1732676433763,3.42,233.42,233.38,10.55777222]
[1732676434464,3.42,233.42,233.4,2.1431]
[1732676435462,8.45,233.42,233.4,2.1431]
[1732676435660,2.0000373,233.42,233.4,2.1431]
[1732676437860,2.72,233.51,233.46,5.0]
[1732676438065,3.7747,233.75,233.51,4.24709651]
[1732676438264,3.7747,233.75,233.66,10.55777222]
[1732676439157,1.9309,233.8,233.69,10.55777222]
[1732676439360,4.1309,233.8,233.69,10.55777222]
[1732676439666,7.3,233.79,233.72,10.55777222]
[1732676440168,7.3,233.79,233.76,2.1398]
[1732676440358,7.3,233.79,233.71,16.87588335]
[1732676440559,7.3,233.79,233.75,16.87588335]
[1732676440763,7.3,233.79,233.77,2.1397]
[1732676440969,8.3,233.79,233.77,2.1397]
[1732676441661,8.3,233.79,233.73,2.2]
[1732676441865,8.3,233.79,233.75,2.1399]
[1732676442668,8.3,233.79,233.73,2.2]
[1732676442868,8.3,233.79,233.69,2.2]
[1732676443163,8.3,233.79,233.67,16.87588335]
[1732676443667,1.25,233.78,233.67,16.87588335]
[1732676444168,1.25,233.78,233.7,2.1404]
[1732676445464,1.0,233.75,233.71,16.87588335]
[1732676446466,1.0,233.75,233.74,2.14]
[1732676446659,1.0,233.75,233.71,16.87588335]
[1732676446861,1.0,233.75,233.7,2.2]
[1732676447059,1.0,233.75,233.67,16.87588335]
[1732676449373,1.0,233.75,233.7,2.1403]
[1732676449572,1.0,233.75,233.63,19.07588335]
[1732676451573,1.0,233.75,233.65,2.1408]
[1732676452470,1.0,233.75,233.63,19.07588335]
[1732676452671,3.14,233.75,233.66,2.1408]
[1732676453662,3.14,233.75,233.63,2.2]
[1732676453663,1.0,233.75,233.63,2.2]
[1732676453866,2.1401,233.73,233.63,2.141]
[1732676454369,2.1401,233.73,233.59,16.87588335]
[1732676454571,2.1401,233.73,233.64,2.1409]
[1732676454766,1.0,233.75,233.64,2.1409]
[1732676455570,2.1401,233.74,233.64,2.1409]
[1732676456166,2.1401,233.74,233.59,16.87588335]
[1732676456367,2.1408,233.66,233.52,1.0]
[1732676456573,2.2,233.65,233.51,16.87588335]
[1732676456771,2.2,233.64,233.57,2.1416]
[1732676457370,2.2,233.64,233.51,16.87588335]
[1732676457774,3.977,233.64,233.51,16.87588335]
[1732676458073,6.118,233.64,233.55,2.1417]
[1732676458275,3.977,233.64,233.55,2.1417]
[1732676459376,6.118,233.64,233.55,2.1417]
[1732676460175,6.118,233.64,233.56,2.1417]
[1732676460478,1.25,233.63,233.51,16.87588335]
[1732676460676,3.45,233.63,233.51,16.87588335]
[1732676460869,3.45,233.63,233.56,2.1416]
[1732676461073,3.45,233.63,233.51,16.87588335]
[1732676461272,3.55,233.62,233.51,16.87588335]
[1732676461469,2.1412,233.61,233.52,2.142]
[1732676461772,3.55,233.62,233.47,16.87588335]
[1732676462077,3.55,233.62,233.52,2.142]
[1732676462279,3.55,233.62,233.47,16.87588335]
[1732676462877,2.1418,233.55,233.43,16.87588335]
[1732676463074,2.2,233.54,233.39,16.87588335]
[1732676463271,2.2,233.54,233.29,2.1560751]
[1732676463272,4.1253,233.53,233.35,16.87588335]
[1732676463474,1.9253,233.53,233.42,2.1429]
[1732676463674,1.9253,233.53,233.39,16.87588335]
[1732676463874,4.1253,233.53,233.43,16.87588335]
[1732676464075,4.1253,233.53,233.47,2.1425]
[1732676465077,4.1253,233.53,233.45,2.1426]
[1732676465275,4.1253,233.53,233.35,19.07588335]
[1732676465474,3.6823,233.52,233.35,19.07588335]
[1732676465777,3.6823,233.52,233.35,16.87588335]
[1732676465977,2.1425,233.48,233.38,2.1433]
[1732676466180,2.2,233.47,233.35,16.87588335]
[1732676466479,2.2,233.47,233.31,16.87588335]
[1732676466677,2.1427,233.46,233.31,16.87588335]
[1732676466881,2.2,233.47,233.31,16.87588335]
[1732676467082,2.2,233.47,233.4,2.1432]
[1732676467281,2.2,233.47,233.31,16.87588335]
[1732676467282,2.2,233.48,233.39,16.87588335]
[1732676467577,2.2,233.51,233.47,2.1425]
[1732676468681,3.2,233.51,233.39,16.87588335]
[1732676469586,5.3422,233.51,233.39,16.87588335]
[1732676469782,3.2,233.51,233.35,19.07588335]
[1732676470382,1.0,233.47,233.3,16.87588335]
[1732676470684,1.0,233.44,233.3,16.87588335]
[1732676470888,3.2,233.44,233.3,16.87588335]
[1732676472590,1.0,233.43,233.39,2.1432]
[1732676473787,2.2,233.44,233.4,2.1431]
[1732676473986,2.2,233.44,233.34,16.87588335]
[1732676474191,2.2,233.44,233.32,2.2]
[1732676474192,1.0,233.43,233.38,16.87588335]
[1732676474393,1.0,233.43,233.42,19.01888335]
[1732676474788,4.0955,233.52,233.42,16.87588335]
[1732676475490,2.2,233.57,233.42,16.87588335]
[1732676475686,3.748,233.58,233.52,2.1421]
[1732676475886,2.2,233.59,233.52,2.1421]
[1732676476687,1.8025,233.61,233.52,2.1421]
[1732676477586,2.2,233.57,233.51,2.1421]
[1732676477786,2.2,233.57,233.42,16.87588335]
[1732676477987,1.8025,233.61,233.42,16.87588335]
[1732676478598,1.8025,233.61,233.51,2.1421]
[1732676478900,1.8025,233.61,233.42,16.87588335]
[1732676479088,5.37,233.53,233.43,2.2]
[1732676479893,5.37,233.53,233.46,2.1426]
[1732676480092,5.37,233.53,233.43,2.2]
[1732676480493,7.512,233.53,233.43,2.1429]
[1732676480695,7.3207,233.53,233.39,2.2]
[1732676481196,5.37,233.53,233.42,16.87588335]
[1732676481398,5.37,233.53,233.42,18.96702736]
[1732676481798,5.37,233.53,233.51,2.1421]
[1732676482889,5.37,233.53,233.52,2.1421]
[1732676485193,3.2055,233.63,233.53,2.142]
[1732676485394,1.9555,233.63,233.53,2.142]
[1732676486887,0.66,233.56,233.53,2.142]
[1732676487089,4.85,233.54,233.53,2.142]
[1732676487890,4.85,233.54,233.46,16.87588335]
[1732676488198,4.85,233.54,233.5,2.1422]
[1732676488699,4.85,233.54,233.52,2.142]
[1732676489992,4.85,233.54,233.42,18.96991823]
[1732676489993,4.85,233.54,233.53,2.142]
[1732676491701,0.66,233.56,233.55,2.1418]
[1732676492695,2.24,233.71,233.63,2.141]
[1732676493102,2.24,233.71,233.59,2.24]
[1732676493297,3.18,233.7,233.63,2.141]
[1732676493507,3.18,233.7,233.59,2.24]
[1732676495206,5.3205,233.7,233.59,2.24]
[1732676495411,3.18,233.7,233.59,2.24]
[1732676495804,3.18,233.7,233.55,16.87588335]
[1732676496010,3.18,233.7,233.58,2.24]
[1732676496513,3.18,233.7,233.59,2.1413]
[1732676497114,2.1406,233.69,233.6,2.1413]
[1732676497304,2.24,233.68,233.58,2.24]
[1732676498010,4.3806,233.68,233.59,2.1413]
[1732676498204,4.3806,233.68,233.58,2.24]
[1732676498615,2.24,233.68,233.58,2.24]
[1732676499613,2.24,233.68,233.56,2.24]
[1732676499809,2.24,233.68,233.54,2.24]
[1732676500211,19.11588335,233.68,233.51,16.87588335]
[1732676500404,1.7878,233.67,233.5,2.24]
[1732676501210,2.141,233.64,233.55,2.1417]
[1732676501411,3.7064,233.63,233.5,2.24]
[1732676501711,2.24,233.62,233.5,2.24]
[1732676501916,2.24,233.62,233.49,2.24]
[1732676502614,4.0278,233.67,233.51,16.87588335]
[1732676502811,3.6764,233.66,233.49,2.24]
[1732676503005,2.1413,233.61,233.54,2.1419]
[1732676503210,2.24,233.61,233.54,2.1419]
[1732676503412,2.24,233.61,233.49,2.24]
[1732676504716,12.0,233.5,233.34,17.28626195]
[1732676505015,16.87588335,233.35,233.21,2.18314285]
[1732676505218,2.1433,233.39,233.25,2.1445]
[1732676505420,0.42,233.38,233.21,1.9108]
[1732676505918,0.42,233.38,233.23,2.1447]
[1732676505919,2.1434,233.37,233.23,2.1447]
[1732676506118,0.42,233.38,233.21,1.9108]
[1732676506520,2.5634,233.38,233.24,2.1446]
[1732676506821,0.42,233.38,233.21,1.9108]
[1732676507117,0.42,233.38,233.22,1.8793]
[1732676507321,0.42,233.38,233.22,3.6505]
[1732676507915,2.42,233.37,233.22,20.52638335]
[1732676508218,0.42,233.37,233.22,20.52638335]
[1732676509425,0.42,233.37,233.27,2.1443]
[1732676509918,0.42,233.37,233.29,2.1441]
[1732676510620,0.42,233.37,233.24,2.42]
[1732676510820,0.42,233.37,233.27,2.1443]
[1732676511025,0.42,233.37,233.24,2.42]
[1732676511225,0.42,233.37,233.22,3.6505]
[1732676511425,2.1436,233.36,233.23,2.1447]
[1732676511725,0.42,233.37,233.23,2.1447]
[1732676512126,0.42,233.37,233.26,2.1444]
[1732676512327,0.42,233.37,233.22,3.6505]
[1732676513527,2.1438,233.34,233.22,3.6505]
[1732676513823,0.42,233.37,233.22,3.6505]
[1732676514226,0.42,233.37,233.28,2.1442]
[1732676514530,0.42,233.37,233.22,3.6505]
[1732676514929,4.48,233.36,233.28,2.1442]
[1732676515830,4.48,233.36,233.29,2.1441]
[1732676516229,4.48,233.36,233.29,16.87588335]
[1732676516432,4.48,233.36,233.3,2.42]
[1732676516630,1.5404,233.36,233.3,2.42]
[1732676517329,21.43838335,233.48,233.38,2.1433]
[1732676517529,19.29588335,233.48,233.3,2.42]
[1732676517932,21.43838335,233.48,233.37,2.1434]
[1732676518433,21.43838335,233.48,233.32,16.87588335]
[1732676518434,19.29588335,233.48,233.32,16.87588335]
[1732676518732,2.42,233.48,233.4,2.1432]
[1732676518930,1.8831,233.5,233.36,19.29588335]
[1732676518931,0.11,233.47,233.36,19.29588335]
[1732676520432,0.11,233.47,233.4,16.87588335]
[1732676521029,0.11,233.47,233.36,19.29588335]
[1732676521730,0.11,233.47,233.37,2.42]
[1732676522437,0.11,233.47,233.38,1.7941]
[1732676523128,33.83269898,234.07,233.44,16.87588335]
[1732676523129,12.86,233.73,233.44,16.87588335]
[1732676523328,6.0533,233.63,233.45,2.42]
[1732676523527,2.1412,233.62,233.51,2.1421]
[1732676523835,16.87588335,233.6,233.46,4.3551]
[1732676524228,16.87588335,233.6,233.46,1.9351]
[1732676524734,16.87588335,233.6,233.43,2.42]
[1732676526041,2.1418,233.55,233.46,2.1426]
[1732676526337,4.5618,233.55,233.46,2.1426]
[1732676526633,2.42,233.55,233.51,2.1421]
[1732676526834,2.42,233.59,233.44,16.87588335]
[1732676527035,0.1159,233.62,233.44,16.87588335]
[1732676527334,4.5613,233.61,233.44,16.87588335]
[1732676527735,2.42,233.61,233.44,16.87588335]
[1732676527939,2.1416,233.57,233.48,2.1424]
[1732676528141,2.1416,233.57,233.43,2.42]
[1732676528142,16.87588335,233.6,233.43,2.42]
[1732676528439,16.87588335,233.6,233.44,1.8502]
[1732676528739,16.87588335,233.56,233.44,1.8502]
[1732676529035,2.42,233.55,233.44,1.8502]
[1732676529435,2.142,233.53,233.45,2.1427]
[1732676530339,16.87588335,233.52,233.3,2.42]
[1732676530535,1.9387,233.51,233.31,1.9472]
[1732676531239,2.1426,233.47,233.38,2.1433]
[1732676531438,2.1426,233.47,233.31,1.9472]
[1732676531439,2.42,233.46,233.31,1.9472]
[1732676532536,4.5626,233.46,233.32,2.42]
[1732676532841,2.42,233.46,233.34,16.87588335]
[1732676533139,2.42,233.48,233.34,16.87588335]
[1732676533342,2.42,233.5,233.38,16.87588335]
[1732676533542,2.42,233.54,233.45,2.1427]
[1732676533739,2.42,233.55,233.42,16.87588335]
[1732676533945,3.6014,233.61,233.46,16.87588335]
[1732676534242,2.42,233.6,233.46,16.87588335]
[1732676534442,2.1414,233.59,233.46,16.87588335]
[1732676534642,2.42,233.6,233.45,2.42]
[1732676535939,2.1419,233.54,233.45,2.42]
[1732676536145,19.29588335,233.6,233.43,5.4798]
[1732676536535,2.1419,233.54,233.45,2.1427]
[1732676536734,3.6014,233.61,233.43,5.4798]
[1732676536941,2.38,233.63,233.46,16.87588335]
[1732676537139,2.38,233.62,233.5,16.87588335]
[1732676537341,2.38,233.64,233.5,16.87588335]
[1732676537740,4.521,233.64,233.55,2.1418]
[1732676538345,2.38,233.64,233.56,2.1417]
[1732676539354,4.521,233.64,233.56,2.1417]
[1732676539942,4.521,233.64,233.43,5.4798]
[1732676539943,2.38,233.68,233.54,16.87588335]
[1732676540147,2.38,233.68,233.55,6.2112]
[1732676540743,18.93088335,233.73,233.55,6.2112]
[1732676540945,2.38,233.74,233.59,16.87588335]
[1732676541142,2.38,233.74,233.63,16.87588335]
[1732676541344,2.1401,233.73,233.63,19.01688335]
[1732676541548,2.38,233.74,233.61,2.38]
[1732676542844,2.38,233.74,233.59,16.87588335]
[1732676543043,2.1404,233.71,233.63,2.141]
[1732676543443,2.38,233.74,233.64,2.1409]
[1732676543444,2.1402,233.72,233.64,2.1409]
[1732676543639,2.38,233.74,233.57,2.38]
[1732676543840,2.38,233.74,233.55,5.7073]
[1732676543841,16.87588335,233.73,233.56,2.38]
[1732676544047,16.87588335,233.73,233.55,5.7073]
[1732676544346,16.87588335,233.69,233.55,5.7073]
[1732676544536,16.87588335,233.69,233.48,2.38]
[1732676544537,2.38,233.68,233.48,2.38]
[1732676544744,16.87588335,233.65,233.46,16.87588335]
[1732676544939,1.9154,233.64,233.47,2.38]
[1732676545947,1.9154,233.64,233.5,2.1422]
[1732676545948,2.1414,233.59,233.5,2.1422]
[1732676546247,2.38,233.6,233.43,6.57397828]
[1732676546445,2.38,233.6,233.44,2.38]
[1732676546648,2.1417,233.56,233.46,2.1425]
[1732676546945,2.1417,233.56,233.44,2.38]
[1732676547144,2.38,233.6,233.44,2.38]
[1732676547343,4.5214,233.6,233.5,2.1422]
[1732676547546,1.9154,233.64,233.44,2.38]
[1732676547748,2.38,233.63,233.44,2.38]
[1732676548150,2.1412,233.61,233.44,2.38]
[1732676548548,2.1412,233.61,233.49,2.1423]
[1732676548851,2.1412,233.61,233.44,2.38]
[1732676549040,2.38,233.63,233.44,2.38]
[1732676549648,15.24,233.63,233.43,5.5028]
[1732676549849,15.2959,233.63,233.43,5.5028]
[1732676550246,2.4359,233.63,233.43,5.5028]
[1732676550450,2.38,233.62,233.43,5.5028]
[1732676550653,2.38,233.62,233.46,16.87588335]
[1732676550954,2.1415,233.59,233.51,2.1421]
[1732676551157,2.38,233.62,233.46,16.87588335]
[1732676551343,2.38,233.62,233.43,5.5028]
[1732676552154,16.87588335,233.6,233.43,5.5028]
[1732676552844,16.87588335,233.56,233.36,2.38]
[1732676553045,4.2147,233.55,233.36,2.38]
[1732676554252,16.87588335,233.52,233.35,5.5441]
[1732676554556,2.1433,233.39,233.31,2.1439]
[1732676554749,2.38,233.38,233.29,2.34305821]
[1732676554951,2.38,233.37,233.29,2.34305821]
[1732676555153,2.1439,233.33,233.29,2.34305821]
[1732676555359,2.38,233.32,233.29,2.34305821]
[1732676555658,2.38,233.32,233.24,2.1446]
[1732676555659,2.38,233.32,233.19,16.87588335]
[1732676555846,2.38,233.32,233.2,3.7755]
[1732676556051,2.38,233.32,233.28,2.1442]
[1732676556354,1.8525,233.38,233.23,16.87588335]
[1732676556355,2.38,233.36,233.23,16.87588335]
[1732676556749,4.5236,233.36,233.27,2.1443]
[1732676557254,2.1432,233.4,233.3,2.1441]
[1732676557451,2.38,233.39,233.27,16.87588335]
[1732676557855,2.38,233.39,233.27,19.25588335]
[1732676558054,2.143,233.42,233.27,19.25588335]
[1732676558254,2.38,233.41,233.27,19.25588335]
[1732676560048,2.38,233.41,233.36,2.1435]
[1732676560254,2.38,233.45,233.36,2.1435]
[1732676561257,4.5227,233.45,233.36,2.1435]
[1732676561458,3.7118,233.48,233.39,2.1432]
[1732676561758,2.143,233.42,233.32,3.584]
[1732676561951,2.38,233.45,233.32,3.584]
[1732676562952,16.87588335,233.43,233.32,1.7822]
[1732676563753,16.87588335,233.43,233.29,2.1442]
[1732676563952,16.87588335,233.43,233.27,1.7658]
[1732676564160,2.1432,233.4,233.33,2.1438]
[1732676564454,2.32,233.39,233.33,2.1438]
[1732676564855,2.32,233.39,233.27,1.7658]
[1732676565460,2.143,233.43,233.36,2.1435]
[1732676565660,2.32,233.42,233.27,1.7658]
[1732676565960,2.32,233.42,233.35,2.1436]
[1732676565961,4.463,233.42,233.35,2.1436]
[1732676566263,2.32,233.41,233.35,2.1436]
[1732676566458,2.32,233.42,233.35,2.1436]
[1732676566659,4.463,233.42,233.35,2.1436]
[1732676567064,2.32,233.42,233.27,1.7658]
[1732676567261,2.1433,233.39,233.27,1.7658]
[1732676568063,2.1435,233.36,233.29,2.1442]
[1732676568368,4.4635,233.36,233.29,2.1442]
[1732676568563,4.4635,233.36,233.27,1.7658]
[1732676568762,2.32,233.36,233.27,1.7658]
[1732676570163,2.1437,233.35,233.26,2.38553]
[1732676570365,2.32,233.36,233.26,0.24113]
[1732676571064,2.32,233.36,233.26,2.38553]
[1732676571765,2.32,233.36,233.26,0.24113]
[1732676572162,2.1438,233.33,233.26,0.24113]
[1732676572365,2.32,233.36,233.26,0.24113]
[1732676572565,2.32,233.36,233.26,2.38553]
[1732676573259,2.1437,233.34,233.26,2.38553]